bitfinex/quotes_BTCUSD_20250620
["timestamp","ask_amount","ask_price","bid_price","bid_amount"]
[1750447016051,0.65606551,103240.0,103230.0,0.4049823]
[1750447016288,0.66575092,103240.0,103230.0,0.4049823]
[1750447016535,4.5972465,103240.0,103230.0,0.19384212]
[1750447016747,4.5972465,103240.0,103230.0,0.0001]
[1750447016748,5.69837093,103240.0,103230.0,0.0001]
[1750447016956,5.72157508,103240.0,103230.0,0.0001]
[1750447017174,5.62508523,103240.0,103230.0,0.20352922]
[1750447017401,5.0442047,103240.0,103230.0,0.21321613]
[1750447017846,5.0442047,103240.0,103230.0,0.21321623]
[1750447018066,4.88716134,103240.0,103230.0,0.24227631]
[1750447018280,5.09057077,103240.0,103230.0,0.24227631]
[1750447018491,5.10025693,103240.0,103230.0,0.24227631]
[1750447018701,5.10025693,103240.0,103230.0,0.23258987]
[1750447018909,4.98433169,103240.0,103230.0,0.22290314]
[1750447019132,4.96496002,103240.0,103230.0,0.0001]
[1750447019396,4.96396002,103240.0,103230.0,0.0097871]
[1750447019610,4.96596155,103240.0,103230.0,0.20352922]
[1750447020052,4.98248235,103240.0,103230.0,0.0001]
[1750447020294,5.44743712,103240.0,103230.0,0.0001]
[1750447021155,5.54270697,103240.0,103230.0,0.0001]
[1750447021368,5.43837138,103240.0,103230.0,0.0001]
[1750447021605,5.44743289,103240.0,103230.0,0.0001]
[1750447022247,4.98247587,103240.0,103230.0,0.20352922]
[1750447022686,4.98247587,103240.0,103230.0,0.21321623]
[1750447022919,4.51752058,103240.0,103230.0,0.20352922]
[1750447023128,4.97278971,103240.0,103230.0,0.20352922]
[1750447023336,4.97279197,103240.0,103230.0,0.0001]
[1750447023762,5.43773708,103240.0,103230.0,0.0001]
[1750447024491,5.41454091,103240.0,103230.0,0.0001]
[1750447024915,4.50782783,103240.0,103230.0,0.0001]
[1750447025128,4.97278366,103240.0,103230.0,0.0001]
[1750447025340,5.41454145,103240.0,103230.0,0.0001]
[1750447025769,5.43773649,103240.0,103230.0,0.0001]
[1750447026403,5.41454145,103240.0,103230.0,0.0001]
[1750447026828,4.48463087,103240.0,103230.0,0.19384212]
[1750447027042,5.36334145,103240.0,103230.0,0.21321604]
[1750447027257,4.97868716,103240.0,103230.0,0.21321604]
[1750447027476,4.97868716,103240.0,103230.0,0.0001]
[1750447027878,4.96962458,103240.0,103230.0,0.0001]
[1750447028115,4.97868783,103240.0,103230.0,0.0001]
[1750447028324,5.44364312,103240.0,103230.0,0.0001]
[1750447028531,5.4436444,103240.0,103230.0,0.20352922]
[1750447029171,5.46301644,103240.0,103230.0,0.21321613]
[1750447029391,4.33938138,103240.0,103230.0,0.24227612]
[1750447029607,4.77455802,103240.0,103230.0,0.24227612]
[1750447029819,4.76487214,103240.0,103230.0,0.24227612]
[1750447030030,4.134067,103240.0,103230.0,0.28587982]
[1750447030252,4.56992129,103240.0,103230.0,0.31817982]
[1750447030470,4.56992129,103240.0,103230.0,0.49861982]
[1750447030704,4.53742129,103240.0,103230.0,0.49861982]
[1750447031370,0.80995529,103240.0,103230.0,0.49861982]
[1750447032896,0.8196407,103240.0,103230.0,0.49861982]
[1750447033143,0.80995529,103240.0,103230.0,0.49861982]
[1750447033771,0.81964061,103240.0,103230.0,0.49861982]
[1750447033976,0.80995529,103240.0,103230.0,0.49861982]
[1750447034189,0.345,103240.0,103230.0,0.49861982]
[1750447034424,0.80995529,103240.0,103230.0,0.49861982]
[1750447035731,0.80995529,103240.0,103230.0,0.45501612]
[1750447035946,0.48932639,103240.0,103230.0,0.45445612]
[1750447036159,0.48932639,103240.0,103230.0,0.39309595]
[1750447036160,0.75683573,103240.0,103230.0,0.39309595]
[1750447036375,0.005,103240.0,103230.0,0.4452694]
[1750447036602,0.46995529,103240.0,103230.0,0.4452694]
[1750447036844,0.46995529,103240.0,103230.0,0.51014117]
[1750447037473,0.005,103240.0,103230.0,0.51014117]
[1750447037713,0.46995529,103240.0,103230.0,0.51014117]
[1750447038551,0.48932612,103240.0,103230.0,0.51014117]
[1750447039180,0.49901181,103240.0,103230.0,0.4124694]
[1750447039454,0.5410976,103240.0,103230.0,0.4124694]
[1750447039664,0.53141181,103240.0,103230.0,0.4124694]
[1750447040090,0.04708532,103240.0,103230.0,0.4124694]
[1750447040313,0.5410976,103240.0,103230.0,0.4431694]
[1750447040530,1.199777,103240.0,103230.0,0.39261604]
[1750447040764,1.24166316,103240.0,103230.0,0.40230267]
[1750447040971,4.95944365,103240.0,103230.0,0.40230267]
[1750447041184,3.81643795,103240.0,103230.0,0.39261604]
[1750447041393,3.81643795,103240.0,103230.0,0.41198921]
[1750447041604,4.31049124,103240.0,103230.0,0.41198921]
[1750447042045,4.5042146,103240.0,103230.0,0.40230277]
[1750447042254,4.5042146,103240.0,103230.0,0.4119894]
[1750447042462,4.5642146,103240.0,103230.0,0.4119894]
[1750447042674,4.5642146,103240.0,103230.0,0.42167594]
[1750447042886,3.90553595,103240.0,103230.0,0.42167594]
[1750447043121,4.83544653,103240.0,103230.0,0.42167528]
[1750447043539,4.84513269,103240.0,103230.0,0.42167528]
[1750447043950,4.84630269,103240.0,103230.0,0.42167528]
[1750447044374,4.83661653,103240.0,103230.0,0.42167528]
[1750447045651,5.03033989,103240.0,103230.0,0.4023023]
[1750447046309,5.37033989,103240.0,103230.0,0.38292922]
[1750447046563,5.37033989,103240.0,103230.0,0.39261604]
[1750447046817,5.37033989,103240.0,103230.0,0.40230277]
[1750447047053,4.68914675,103240.0,103230.0,0.41198921]
[1750447047767,4.68714675,103240.0,103230.0,0.41198921]
[1750447048012,4.68514675,103240.0,103230.0,0.41198921]
[1750447048258,4.68614675,103240.0,103230.0,0.41198921]
[1750447049025,4.67646021,103240.0,103230.0,0.41198921]
[1750447049282,5.1414155,103240.0,103230.0,0.41198921]
[1750447049815,5.1414155,103240.0,103230.0,0.42167575]
[1750447050256,4.81110129,103240.0,103230.0,0.42167575]
[1750447050495,4.8014155,103240.0,103230.0,0.42167575]
[1750447051969,4.5933845,103240.0,103230.0,0.42167575]
[1750447052197,1.0415495,103240.0,103230.0,0.42167575]
[1750447052430,4.5933845,103240.0,103230.0,0.42167575]
[1750447052850,4.60307029,103240.0,103230.0,0.42167575]
[1750447053054,4.60307019,103240.0,103230.0,0.42059575]
[1750447053296,4.59338431,103240.0,103230.0,0.48528941]
[1750447053506,4.12842902,103240.0,103230.0,0.48528941]
[1750447053735,4.10788829,103240.0,103230.0,0.51808941]
[1750447053938,4.07879029,103240.0,103230.0,0.55018941]
[1750447054796,3.613835,103240.0,103230.0,0.55018941]
[1750447054978,4.07879029,103240.0,103230.0,0.55018941]
[1750447055180,4.07996029,103240.0,103230.0,0.55018941]
[1750447055816,0.52695529,103240.0,103230.0,0.55018941]
[1750447056355,0.002,103240.0,103230.0,0.55018941]
[1750447056623,0.002,103240.0,103230.0,0.64562834]
[1750447058147,0.46695529,103240.0,103230.0,0.64562834]
[1750447059366,0.46695529,103240.0,103230.0,0.46730834]
[1750447059563,0.46695529,103240.0,103230.0,0.46714834]
[1750447059761,0.46695529,103240.0,103230.0,0.48525575]
[1750447060068,0.46812529,103240.0,103230.0,0.48525575]
[1750447060767,0.47781061,103240.0,103230.0,0.48525575]
[1750447061439,0.46812529,103240.0,103230.0,0.48525575]
[1750447061651,0.4778107,103240.0,103230.0,0.30717575]
[1750447061863,0.48749639,103240.0,103230.0,0.45315575]
[1750447062069,0.4874963,103240.0,103230.0,0.45315575]
[1750447062274,0.49718209,103240.0,103230.0,0.45315575]
[1750447062483,0.49718199,103240.0,103230.0,0.45315575]
[1750447062908,0.49718199,103240.0,103230.0,0.27507575]
[1750447063130,0.49718199,103240.0,103230.0,0.45279575]
[1750447063342,0.48749621,103240.0,103230.0,0.45279575]
[1750447063549,0.4778107,103240.0,103230.0,0.52056141]
[1750447063776,0.4778107,103240.0,103230.0,0.34284141]
[1750447063981,0.46812529,103240.0,103230.0,0.52036141]
[1750447064189,0.46812529,103240.0,103230.0,0.34284141]
[1750447064400,0.46812529,103240.0,103230.0,0.52024141]
[1750447064603,0.47781061,103240.0,103230.0,0.52024141]
[1750447065066,0.48749612,103240.0,103230.0,0.52024141]
[1750447065281,0.49718172,103240.0,103230.0,0.52024141]
[1750447066122,0.47781061,103240.0,103230.0,0.45247575]
[1750447066739,0.47781061,103240.0,103230.0,0.27507575]
[1750447067157,0.47781061,103240.0,103230.0,0.45247575]
[1750447067379,0.48749612,103240.0,103230.0,0.45247575]
[1750447067577,0.48749612,103240.0,103230.0,0.27507575]
[1750447067764,0.48749612,103240.0,103230.0,0.45247575]
[1750447068325,0.47781061,103240.0,103230.0,0.45247575]
[1750447068525,0.48749612,103240.0,103230.0,0.27507575]
[1750447068725,0.47781061,103240.0,103230.0,0.45247575]
[1750447069005,0.47781061,103240.0,103230.0,0.50246941]
[1750447069342,0.48749602,103240.0,103230.0,0.50246941]
[1750447069947,0.48749602,103240.0,103230.0,0.32506941]
[1750447070145,0.49718162,103240.0,103230.0,0.50242941]
[1750447070348,0.49718162,103240.0,103230.0,0.45243575]
[1750447070618,0.48749602,103240.0,103230.0,0.45243575]
[1750447071710,0.01285532,103240.0,103230.0,0.45243575]
[1750447071945,0.47781061,103240.0,103230.0,0.45243575]
[1750447072395,0.48749621,103240.0,103230.0,0.45243575]
[1750447073041,0.48749621,103240.0,103230.0,0.52016541]
[1750447073243,0.48749612,103240.0,103230.0,0.52016541]
[1750447073885,0.47781061,103240.0,103230.0,0.52016541]
[1750447074456,0.01285532,103240.0,103230.0,0.52016541]
[1750447074663,0.46812529,103240.0,103230.0,0.52016541]
[1750447075892,0.47781061,103240.0,103230.0,0.52016541]
[1750447076292,0.01285532,103240.0,103230.0,0.52016541]
[1750447076510,0.47781061,103240.0,103230.0,0.52016541]
[1750447076735,0.48749602,103240.0,103230.0,0.52016541]
[1750447077291,0.46812529,103240.0,103230.0,0.52016541]
[1750447077523,0.46812529,103240.0,103230.0,0.55096541]
[1750447077739,0.47781061,103240.0,103230.0,0.55096541]
[1750447077931,0.46812529,103240.0,103230.0,0.55096541]
[1750447078146,0.47781061,103240.0,103230.0,0.55096541]
[1750447079080,0.48749612,103240.0,103230.0,0.55096541]
[1750447079282,0.47781061,103240.0,103230.0,0.55096541]
[1750447080003,0.00317,103240.0,103230.0,0.55096541]
[1750447080272,0.46812529,103240.0,103230.0,0.55096541]
[1750447081093,0.4778108,103240.0,103230.0,0.52016541]
[1750447081300,0.46495529,103240.0,103230.0,0.52016541]
[1750447081696,0.4746407,103240.0,103230.0,0.52016541]
[1750447082499,0.46495529,103240.0,103230.0,0.52016541]
[1750447083307,0.03026464,103250.0,103240.0,0.22278073]
[1750447083482,4.05673894,103250.0,103240.0,0.28282098]
[1750447083684,4.28529012,103250.0,103230.0,0.37120212]
[1750447083884,4.24342365,103240.0,103230.0,0.39049604]
[1750447084120,4.28530981,103240.0,103230.0,0.22290267]
[1750447084329,4.05938608,103240.0,103230.0,0.23258911]
[1750447084535,4.05985675,103240.0,103230.0,0.23258911]
[1750447085526,4.06954273,103240.0,103230.0,0.23258911]
[1750447085728,4.06954235,103240.0,103230.0,0.23258911]
[1750447086418,4.03784235,103240.0,103230.0,0.23258911]
[1750447086630,4.04752823,103240.0,103230.0,0.23258911]
[1750447087039,3.57288659,103240.0,103230.0,0.29723084]
[1750447087251,4.03784179,103240.0,103230.0,0.33023084]
[1750447087666,4.04631748,103240.0,103230.0,0.33023084]
[1750447088099,4.02694628,103240.0,103230.0,0.36283084]
[1750447088303,4.01726096,103240.0,103230.0,0.29818911]
[1750447088507,0.47511128,103240.0,103230.0,0.29818911]
[1750447088712,0.48600688,103240.0,103230.0,0.29818911]
[1750447088924,0.49569257,103240.0,103230.0,0.40982911]
[1750447089102,0.50537845,103240.0,103230.0,0.40982911]
[1750447089344,0.50537845,103240.0,103230.0,0.44282911]
[1750447089562,4.06689943,103240.0,103230.0,0.40982911]
[1750447089760,4.06689943,103240.0,103230.0,0.41082911]
[1750447090165,4.04752813,103240.0,103230.0,0.41082911]
[1750447090812,4.03784225,103240.0,103230.0,0.41082911]
[1750447091022,4.04752813,103240.0,103230.0,0.44382911]
[1750447091445,4.04752813,103240.0,103230.0,0.44582911]
[1750447091870,3.57288696,103240.0,103230.0,0.44582911]
[1750447092085,4.04752767,103240.0,103230.0,0.44582911]
[1750447092290,4.04752767,103240.0,103230.0,0.51401684]
[1750447092496,3.58257238,103240.0,103230.0,0.51401684]
[1750447092733,0.48600688,103240.0,103230.0,0.51401684]
[1750447092945,0.49569267,103240.0,103230.0,0.47832911]
[1750447093532,0.02105159,103240.0,103230.0,0.47832911]
[1750447093678,0.48600688,103240.0,103230.0,0.47832911]
[1750447094098,0.50537855,103240.0,103230.0,0.47832911]
[1750447095522,0.51506462,103240.0,103230.0,0.44582911]
[1750447095727,0.70878882,103240.0,103230.0,0.44582911]
[1750447096046,0.5053793,103240.0,103230.0,0.44582911]
[1750447096855,0.49569313,103240.0,103230.0,0.44582911]
[1750447097061,0.01984196,103240.0,103230.0,0.47732911]
[1750447097417,0.48479725,103240.0,103230.0,0.47732911]
[1750447097852,0.03073794,103240.0,103230.0,0.47732911]
[1750447098057,0.49569323,103240.0,103230.0,0.47732911]
[1750447098259,0.48600725,103240.0,103230.0,0.47732911]
[1750447098662,0.49569313,103240.0,103230.0,0.47732911]
[1750447098862,0.02105196,103240.0,103230.0,0.47732911]
[1750447099068,0.48600725,103240.0,103230.0,0.47732911]
[1750447099275,0.49569313,103240.0,103230.0,0.47732911]
[1750447099482,0.70878863,103240.0,103230.0,0.42645604]
[1750447099694,0.68941734,103240.0,103230.0,0.42645604]
[1750447099917,0.68941734,103240.0,103230.0,0.44582949]
[1750447100133,0.48600782,103240.0,103230.0,0.45551593]
[1750447100966,0.48600735,103240.0,103230.0,0.45551593]
[1750447101376,0.48600688,103240.0,103230.0,0.45551593]
[1750447101582,0.49569276,103240.0,103230.0,0.48641593]
[1750447101796,0.46542596,103240.0,103230.0,0.55455161]
[1750447102007,0.01015599,103240.0,103230.0,0.55455161]
[1750447102212,0.46542596,103240.0,103230.0,0.55455161]
[1750447102613,0.47511137,103240.0,103230.0,0.48641593]
[1750447102814,0.48592697,103240.0,103230.0,0.48641593]
[1750447103229,0.00160067,103240.0,103230.0,0.48641593]
[1750447103439,0.46542596,103240.0,103230.0,0.48641593]
[1750447104274,0.46542596,103240.0,103230.0,0.42235593]
[1750447104275,4.41894776,103240.0,103230.0,0.42235593]
[1750447104497,4.41894776,103240.0,103230.0,0.42235546]
[1750447104498,4.39713383,103240.0,103230.0,0.42235546]
[1750447104714,4.39713383,103240.0,103230.0,0.45255546]
[1750447105214,4.60054335,103240.0,103230.0,0.42235546]
[1750447105851,4.60054335,103240.0,103230.0,0.41266902]
[1750447106060,4.61327243,103240.0,103230.0,0.39329623]
[1750447106264,4.61327243,103240.0,103230.0,0.22590314]
[1750447106724,4.61327243,103240.0,103230.0,0.24527669]
[1750447107211,4.61327243,103240.0,103230.0,0.24527622]
[1750447108780,5.04612772,103240.0,103230.0,0.0031]
[1750447108993,5.52669666,103240.0,103230.0,0.0031]
[1750447109249,5.55553262,103240.0,103230.0,0.0031]
[1750447109434,5.54481145,103240.0,103230.0,0.0031]
[1750447109638,5.55060449,103240.0,103230.0,0.0031]
[1750447110057,5.54381145,103240.0,103230.0,0.0021]
[1750447110275,5.52569637,103240.0,103230.0,0.0021]
[1750447110509,4.50104527,103240.0,103230.0,0.0021]
[1750447110732,4.50104527,103240.0,103230.0,0.0001]
[1750447110733,5.4031749,103240.0,103230.0,0.0001]
[1750447111156,5.4631749,103240.0,103230.0,0.0001]
[1750447111573,5.4661749,103240.0,103230.0,0.0001]
[1750447112029,5.00003607,103240.0,103230.0,0.19384212]
[1750447112252,5.00003607,103240.0,103230.0,0.24713327]
[1750447112454,4.97684874,103240.0,103230.0,0.24713327]
[1750447112814,4.72160874,103240.0,103230.0,0.25682009]
[1750447113062,4.94784874,103240.0,103230.0,0.24631604]
[1750447113299,4.94784874,103240.0,103230.0,0.21321604]
[1750447113514,4.94784874,103240.0,103230.0,0.25600277]
[1750447113739,4.76381126,103240.0,103230.0,0.2656894]
[1750447113967,4.52675482,103240.0,103230.0,0.32228955]
[1750447114174,4.45197756,103240.0,103230.0,0.27537584]
[1750447114425,4.65538624,103240.0,103230.0,0.2656894]
[1750447115077,4.4519769,103240.0,103230.0,0.27537528]
[1750447115332,4.47134876,103240.0,103230.0,0.27537528]
[1750447115542,4.47134951,103240.0,103230.0,0.27537528]
[1750447115972,4.46166344,103240.0,103230.0,0.27537528]
[1750447116392,4.10229158,103240.0,103230.0,0.27537528]
[1750447116572,4.11197756,103240.0,103230.0,0.27537528]
[1750447116804,4.12166363,103240.0,103230.0,0.27537528]
[1750447117007,4.11197756,103240.0,103230.0,0.27537528]
[1750447117633,4.12166363,103240.0,103230.0,0.27537528]
[1750447118060,4.10229121,103240.0,103230.0,0.37329286]
[1750447118265,4.44229121,103240.0,103230.0,0.37329286]
[1750447118509,4.451977,103240.0,103230.0,0.30867528]
[1750447118745,0.87964061,103240.0,103230.0,0.30867528]
[1750447119237,0.9086976,103240.0,103230.0,0.30867528]
[1750447119456,0.9098276,103240.0,103230.0,0.30867528]
[1750447119673,0.90982751,103240.0,103230.0,0.30867528]
[1750447119891,0.90014172,103240.0,103230.0,0.37674086]
[1750447120104,0.70737786,103240.0,103230.0,0.37674086]
[1750447120336,0.72787897,103240.0,103230.0,0.37674086]
[1750447120562,0.84482741,103240.0,103230.0,0.37674086]
[1750447120813,0.37987212,103240.0,103230.0,0.37674086]
[1750447121025,0.85451339,103240.0,103230.0,0.37674086]
[1750447121436,0.85451414,103240.0,103230.0,0.37674086]
[1750447121943,0.37987334,103240.0,103230.0,0.35736854]
[1750447122227,0.84482863,103240.0,103230.0,0.35736854]
[1750447122468,0.37987334,103240.0,103230.0,0.35736854]
[1750447122722,0.84482863,103240.0,103230.0,0.35736854]
[1750447123174,0.84482863,103240.0,103230.0,0.32406854]
[1750447123603,0.84482863,103240.0,103230.0,0.33375498]
[1750447123815,0.82545658,103240.0,103230.0,0.33375498]
[1750447124032,0.83514246,103240.0,103230.0,0.36395498]
[1750447124249,0.84482844,103240.0,103230.0,0.36395498]
[1750447124463,0.81577061,103240.0,103230.0,0.36395498]
[1750447124666,0.82545649,103240.0,103230.0,0.36395498]
[1750447125304,0.36050092,103240.0,103230.0,0.36395498]
[1750447125517,0.83514209,103240.0,103230.0,0.36395498]
[1750447125940,0.82545621,103240.0,103230.0,0.36395498]
[1750447126585,4.18696221,103250.0,103240.0,0.25578073]
[1750447126823,4.6519175,103250.0,103240.0,0.28685638]
[1750447127041,4.47495741,103250.0,103240.0,0.28685638]
[1750447127258,4.19402262,103250.0,103240.0,0.23678508]
[1750447127472,4.19402262,103250.0,103240.0,0.00037565]
[1750447127473,4.17465273,103250.0,103240.0,0.00037565]
[1750447127683,4.20765273,103250.0,103240.0,0.00037565]
[1750447128082,4.23855273,103250.0,103240.0,0.00037565]
[1750447128513,4.67260802,103250.0,103240.0,0.20378508]
[1750447128740,4.67260802,103250.0,103240.0,0.21347106]
[1750447128957,4.81652802,103250.0,103240.0,0.21447106]
[1750447129176,4.81652802,103250.0,103240.0,0.22415694]
[1750447130431,4.81652802,103250.0,103240.0,0.23384273]
[1750447130653,4.81652802,103250.0,103240.0,0.25715694]
[1750447131071,4.63960802,103250.0,103240.0,0.25715694]
[1750447132362,4.63960802,103250.0,103240.0,0.24747106]
[1750447132772,4.62992289,103250.0,103240.0,0.20478508]
[1750447132975,4.80680289,103250.0,103240.0,0.20478508]
[1750447133182,4.80680289,103250.0,103240.0,0.22415694]
[1750447133388,4.83960289,103250.0,103240.0,0.19509901]
[1750447133797,4.83960289,103250.0,103240.0,0.00137565]
[1750447134630,4.93487274,103250.0,103240.0,0.20478517]
[1750447134842,4.83960289,103250.0,103240.0,0.21447124]
[1750447135072,4.66272289,103250.0,103240.0,0.21447124]
[1750447135277,4.1649676,103250.0,103240.0,0.21447124]
[1750447135486,4.62992289,103250.0,103240.0,0.21447124]
[1750447135690,4.62992289,103250.0,103240.0,0.19509901]
[1750447135906,4.79060182,103250.0,103240.0,0.19509901]
[1750447136149,4.75800182,103250.0,103240.0,0.19509901]
[1750447136845,3.891835,103250.0,103240.0,0.34967042]
[1750447137059,0.50544395,103260.0,103250.0,0.27577458]
[1750447137305,0.88798979,103260.0,103250.0,0.29514381]
[1750447137517,0.85512777,103260.0,103250.0,0.29514381]
[1750447137730,0.84544367,103260.0,103250.0,0.28545924]
[1750447137941,0.86596262,103260.0,103250.0,0.28545934]
[1750447138146,1.05964846,103260.0,103250.0,0.295144]
[1750447138351,1.06064846,103260.0,103250.0,0.295144]
[1750447138562,0.85727833,103260.0,103250.0,0.30482857]
[1750447138770,1.05096417,103260.0,103250.0,0.28545934]
[1750447139188,0.86267791,103260.0,103250.0,0.27577458]
[1750447139609,0.85299409,103260.0,103250.0,0.27577458]
[1750447139811,0.85299409,103260.0,103250.0,0.27577477]
[1750447140026,0.8536796,103260.0,103250.0,0.26608973]
[1750447140241,0.86273952,103260.0,103250.0,0.26608973]
[1750447140661,0.85305533,103260.0,103250.0,0.26608973]
[1750447140868,4.86984562,103260.0,103250.0,0.031]
[1750447141082,3.76490967,103250.0,103240.0,0.27646963]
[1750447141340,4.23101496,103250.0,103240.0,0.44354356]
[1750447141546,4.22133002,103250.0,103240.0,0.03127565]
[1750447141752,4.21164489,103250.0,103240.0,0.00037565]
[1750447141968,4.70922382,103250.0,103240.0,0.00037565]
[1750447142209,5.40001911,103250.0,103240.0,0.00037565]
[1750447142422,5.46489813,103250.0,103240.0,0.00037565]
[1750447142641,5.46489447,103250.0,103240.0,0.00037565]
[1750447143065,5.49399447,103250.0,103240.0,0.00037565]
[1750447143286,5.59605355,103250.0,103240.0,0.00037565]
[1750447143501,5.59605355,103250.0,103240.0,0.00137565]
[1750447143721,5.59605303,103250.0,103240.0,0.00137565]
[1750447143935,5.02903877,103250.0,103240.0,0.00137565]
[1750447144148,5.04088528,103250.0,103240.0,0.00137565]
[1750447144352,5.04188528,103250.0,103240.0,0.00037565]
[1750447144569,5.04287819,103250.0,103240.0,0.00037565]
[1750447144779,5.04287464,103250.0,103240.0,0.00037565]
[1750447145015,5.04287458,103250.0,103240.0,0.00037565]
[1750447145222,5.13814443,103250.0,103240.0,0.00037565]
[1750447146845,5.04287458,103250.0,103240.0,0.00037565]
[1750447148022,5.04286942,103250.0,103240.0,0.00037565]
[1750447148479,4.95920048,103250.0,103240.0,0.03057565]
[1750447148705,4.95918781,103250.0,103240.0,0.00037565]
[1750447148924,4.94110325,103250.0,103240.0,0.00037565]
[1750447149153,4.71530325,103250.0,103240.0,0.00037565]
[1750447149378,4.94106325,103250.0,103240.0,0.03057565]
[1750447149826,4.94106325,103250.0,103240.0,0.00037565]
[1750447150725,4.9320214,103250.0,103240.0,0.00037565]
[1750447151667,4.94106237,103250.0,103240.0,0.00037565]
[1750447152113,5.10023222,103250.0,103240.0,0.00037565]
[1750447153552,5.11831558,103250.0,103240.0,0.00037565]
[1750447154246,5.1183135,103250.0,103240.0,0.00037565]
[1750447154928,5.11831303,103250.0,103240.0,0.00037565]
[1750447155171,5.10023175,103250.0,103240.0,0.00037565]
[1750447155863,4.9740619,103250.0,103240.0,0.00037565]
[1750447156091,4.7153019,103250.0,103240.0,0.03367565]
[1750447156315,4.9409819,103250.0,103240.0,0.03367565]
[1750447156759,4.94098064,103250.0,103240.0,0.03367565]
[1750447156998,4.91780302,103250.0,103240.0,0.03367565]
[1750447157922,4.94094309,103250.0,103240.0,0.03367565]
[1750447162648,4.71411309,103250.0,103240.0,0.03367565]
[1750447162869,4.94091309,103250.0,103240.0,0.06427565]
[1750447163327,4.94091309,103250.0,103240.0,0.00037565]
[1750447163564,4.94091353,103250.0,103240.0,0.03217565]
[1750447166514,4.94091448,103250.0,103240.0,0.22589901]
[1750447166778,4.94091448,103250.0,103240.0,0.03217565]
[1750447167467,5.03618433,103250.0,103240.0,0.03217565]
[1750447169455,5.03618743,103250.0,103240.0,0.03217565]
[1750447169676,4.94091758,103250.0,103240.0,0.03217565]
[1750447170120,4.94091862,103250.0,103240.0,0.03217565]
[1750447171471,4.95902593,103250.0,103240.0,0.03217565]
[1750447172155,4.95902593,103250.0,103240.0,0.00037565]
[1750447172368,5.08709578,103250.0,103240.0,0.00037565]
[1750447173030,5.06862847,103250.0,103240.0,0.00037565]
[1750447173257,5.03578847,103250.0,103240.0,0.03087565]
[1750447173703,4.94051862,103250.0,103240.0,0.03087565]
[1750447174616,4.93147385,103250.0,103240.0,0.03087565]
[1750447174837,4.94052924,103250.0,103240.0,0.03087565]
[1750447175922,4.94052924,103250.0,103240.0,0.06127565]
[1750447175923,4.24917395,103250.0,103240.0,0.06127565]
[1750447176136,4.94048924,103250.0,103240.0,0.06127565]
[1750447176342,5.03575909,103250.0,103240.0,0.03087565]
[1750447176995,5.03575909,103250.0,103240.0,0.00037565]
[1750447177621,5.05387887,103250.0,103240.0,0.00037565]
[1750447180185,5.05387887,103250.0,103240.0,0.03187565]
[1750447181428,4.95860902,103250.0,103240.0,0.25659901]
[1750447181636,4.94049523,103250.0,103240.0,0.25659901]
[1750447182261,4.94049523,103250.0,103240.0,0.06287565]
[1750447182681,4.94049523,103250.0,103240.0,0.25659901]
[1750447182921,4.71533523,103250.0,103240.0,0.25659901]
[1750447183146,4.93917523,103250.0,103240.0,0.27597124]
[1750447183356,4.93011385,103250.0,103240.0,0.25659901]
[1750447183564,4.93917547,103250.0,103240.0,0.25659901]
[1750447183774,4.94037547,103250.0,103240.0,0.25659901]
[1750447184614,4.47542253,103250.0,103240.0,0.06287565]
[1750447184825,4.94037782,103250.0,103240.0,0.25659901]
[1750447185048,4.98519431,103250.0,103240.0,0.06287565]
[1750447185258,4.98519322,103250.0,103240.0,0.03187565]
[1750447185711,4.98519336,103250.0,103240.0,0.03187565]
[1750447186543,4.98519488,103250.0,103240.0,0.03187565]
[1750447186999,4.47542382,103250.0,103240.0,0.03187565]
[1750447187201,4.94037911,103250.0,103240.0,0.06367565]
[1750447190344,4.93131385,103250.0,103240.0,0.00037565]
[1750447190569,5.0161177,103250.0,103240.0,0.00037565]
[1750447190799,5.07282374,103250.0,103240.0,0.00037565]
[1750447190987,5.18622129,103250.0,103240.0,0.00037565]
[1750447191413,5.18522129,103250.0,103240.0,0.00037565]
[1750447191626,5.62239563,103250.0,103240.0,0.00037565]
[1750447191838,5.62339563,103250.0,103240.0,0.00037565]
[1750447192076,5.63019355,103250.0,103240.0,0.00037565]
[1750447192495,5.16423826,103250.0,103240.0,0.00037565]
[1750447192923,5.16623826,103250.0,103240.0,0.00037565]
[1750447193970,5.16623883,103250.0,103240.0,0.00037565]
[1750447194204,5.1662295,103250.0,103240.0,0.00037565]
[1750447196722,5.15943172,103250.0,103240.0,0.00037565]
[1750447196928,5.16622455,103250.0,103240.0,0.00037565]
[1750447197561,5.16622477,103250.0,103240.0,0.00037565]
[1750447199275,5.13729968,103250.0,103240.0,0.00037565]
[1750447199682,5.13729871,103250.0,103240.0,0.00037565]
[1750447200093,5.13729123,103250.0,103240.0,0.00037565]
[1750447201344,5.13729111,103250.0,103240.0,0.00037565]
[1750447201546,5.13729094,103250.0,103240.0,0.00037565]
[1750447201752,5.16621603,103250.0,103240.0,0.00037565]
[1750447202398,5.15036801,103250.0,103240.0,0.00037565]
[1750447202609,5.16622074,103250.0,103240.0,0.00037565]
[1750447202821,5.13224964,103250.0,103240.0,0.00037565]
[1750447203033,5.16622266,103250.0,103240.0,0.00037565]
[1750447203894,5.16622014,103250.0,103240.0,0.00037565]
[1750447205509,5.16621987,103250.0,103240.0,0.00037565]
[1750447205957,5.13904347,103250.0,103240.0,0.00037565]
[1750447206187,5.16621816,103250.0,103240.0,0.00037565]
[1750447208061,5.10403577,103240.0,103230.0,0.0001]
[1750447208292,5.55638466,103240.0,103230.0,0.00014753]
[1750447208946,6.04457716,103240.0,103230.0,0.00014753]
[1750447209531,6.04457707,103240.0,103230.0,0.00014753]
[1750447210143,5.86885692,103240.0,103230.0,0.00014753]
[1750447210343,6.09313692,103240.0,103230.0,0.00014753]
[1750447211348,6.0931369,103240.0,103230.0,0.00014753]
[1750447211967,6.09313159,103240.0,103230.0,0.00014753]
[1750447213829,6.05917614,103240.0,103230.0,0.00014753]
[1750447214021,6.08828414,103240.0,103230.0,0.00014753]
[1750447214386,6.09334485,103240.0,103230.0,0.00014753]
[1750447214774,6.12728046,103240.0,103230.0,0.00014753]
[1750447215131,5.88035906,103240.0,103230.0,0.00014753]
[1750447215336,6.0837684,103240.0,103230.0,0.00014753]
[1750447216342,6.08376451,103240.0,103230.0,0.00014753]
[1750447216761,6.05286451,103240.0,103230.0,0.00014753]
[1750447217126,6.06740536,103240.0,103230.0,0.00014753]
[1750447217978,6.06740524,103240.0,103230.0,0.00014753]
[1750447218274,6.06741211,103240.0,103230.0,0.00014753]
[1750447220060,6.06740924,103240.0,103230.0,0.00014753]
[1750447221040,5.13750198,103240.0,103230.0,0.00014753]
[1750447221197,6.06741256,103240.0,103230.0,0.00014753]
[1750447221875,6.06741239,103240.0,103230.0,0.00014753]
[1750447222081,6.06741243,103240.0,103230.0,0.00014753]
[1750447223986,6.06740921,103240.0,103230.0,0.00014753]
[1750447224206,6.06740674,103240.0,103230.0,0.00014753]
[1750447225225,6.09637826,103240.0,103230.0,0.00014753]
[1750447225636,0.55796988,103230.0,103220.0,0.0315]
[1750447225997,5.43899149,103230.0,103220.0,0.03197067]
[1750447226402,5.4682453,103230.0,103220.0,0.03197067]
[1750447226581,5.4682453,103230.0,103220.0,0.06347067]